fUST/lending_fUST_20251125
["ID","MTS","AMOUNT","RATE_DAILY","PERIOD"]
[394889857,1764077431771,-1326.0,4.8e-05,2]
[394889858,1764077431782,-1247.14197923,4.8e-05,2]
[394889859,1764077431813,-45845.82732344,4.8e-05,2]
[394889862,1764077437784,-292.81685568,4.8e-05,2]
[394889864,1764077437793,-8101.3724079,4.8e-05,2]
[394889865,1764077437805,-554.58286843,4.8e-05,2]
[394889866,1764077437816,-1117.91553916,4.8e-05,2]
[394889867,1764077437827,-1382.8095471,4.8e-05,2]
[394889868,1764077437839,-15619.73589633,4.8e-05,2]
[394889869,1764077437850,-4897.25569245,4.8e-05,2]
[394889870,1764077437861,-77872.73580253,4.8e-05,2]
[394889871,1764077437890,-1664.24520114,4.8e-05,2]
[394889872,1764077437902,-944.52741498,4.8e-05,2]
[394889873,1764077437934,-5903.97401361,4.8e-05,2]
[394889879,1764077439987,-13146.03113357,4.8e-05,2]
[394889880,1764077439999,-272.33990001,4.8e-05,2]
[394889881,1764077440670,-64.73086818,4.8e-05,2]
[394889902,1764077444344,-94.20211472,4.8e-05,2]
[394889908,1764077445929,-3839.39999999,4.8e-05,2]
[394889912,1764077656530,-155.22554168,4.704e-05,2]
[394889913,1764077672074,-159.59747866,4.704e-05,2]
[394889914,1764077673505,-220.95441046,4.704e-05,2]
[394889915,1764077675067,-200.0,4.704e-05,2]
[394889916,1764077676560,-277.36409766,4.704e-05,2]
[394889917,1764077678556,-240.80759881,4.704e-05,2]
[394889918,1764077680252,-248.33954225,4.704e-05,2]
[394889919,1764077681515,-244.50495158,4.704e-05,2]
[394889920,1764077684034,-214.93543673,4.657e-05,2]
[394889921,1764077686074,-389.49262234,4.657e-05,2]
[394889922,1764077689052,-262.69816767,4.657e-05,2]
[394889923,1764077702457,-248.73214471,4.657e-05,2]
[394889924,1764077702480,-18.49703356,4.704e-05,2]
[394889925,1764077703897,-331.86900224,4.704e-05,2]
[394889926,1764077706858,-223.56036777,4.704e-05,2]
[394889927,1764077709385,-206.68240134,4.704e-05,2]
[394889928,1764077713401,-156.07036398,4.704e-05,2]
[394889929,1764077714868,-156.81564143,4.704e-05,2]
[394889930,1764077718513,-259.86894921,4.704e-05,2]
[394889931,1764077722589,-255.49950257,4.704e-05,2]
[394889932,1764077724122,-231.47465786,4.704e-05,2]
[394889933,1764077726753,-176.39025782,4.704e-05,2]
[394889934,1764077728171,-300.0,4.704e-05,2]
[394889935,1764077730794,-163.44,4.704e-05,2]
[394889936,1764077733228,-350.60723388,4.704e-05,2]
[394889937,1764077736234,-365.3933981,4.704e-05,2]
[394889938,1764077742837,161.0,6.2e-07,2]
[394889952,1764078241483,-163.50419048,4.644e-05,2]
[394889953,1764078256542,-123.45632809,4.644e-05,2]
[394889954,1764078256565,-111.24071558,4.715e-05,2]
[394889955,1764078259843,-287.37240292,4.7e-05,2]
[394889956,1764078261378,-272.96681452,4.7e-05,2]
[394889957,1764078264056,-297.17602716,4.7e-05,2]
[394889958,1764078266432,-313.69268593,4.7e-05,2]
[394889959,1764078269190,-289.56133726,4.7e-05,2]
[394889960,1764078271669,-386.28870249,4.7e-05,2]
[394889961,1764078275790,-226.13145642,4.653e-05,2]
[394889962,1764078277232,-209.79146174,4.653e-05,2]
[394889963,1764078301577,-181.6532127,4.653e-05,2]
[394889964,1764078305249,-187.05912285,4.653e-05,2]
[394889965,1764078307662,-155.86225045,4.653e-05,2]
[394889966,1764078309602,-277.84821052,4.653e-05,2]
[394889967,1764078311078,-312.94087715,4.653e-05,2]
[394889968,1764078314209,-318.3467873,4.653e-05,2]
[394889969,1764078317126,-300.0,4.653e-05,2]
[394889970,1764078320293,-316.8500108,4.653e-05,2]
[394889971,1764078323825,-241.37002,4.653e-05,2]
[394889972,1764078326195,-170.59340552,4.653e-05,2]
[394889973,1764078329713,-151.59932902,4.653e-05,2]
[394889974,1764078331357,-171.85336469,4.653e-05,2]
[394889975,1764078333932,-214.39293793,4.653e-05,2]
[394889976,1764078336579,-196.85436886,4.653e-05,2]
[394889977,1764078338099,-340.36366171,4.653e-05,2]
[394889978,1764078339530,-271.82906116,4.653e-05,2]
[394889979,1764078341484,-206.93512498,4.653e-05,2]
[394889980,1764078343396,-252.83679458,4.653e-05,2]
[394889981,1764078344438,-64.97559219,4.653e-05,2]
[394889982,1764078344461,-145.96967924,4.673e-05,2]
[394889983,1764078350276,-263.00907554,4.673e-05,2]
[394889984,1764078352873,-91.02124522,4.673e-05,2]
[394889985,1764078352895,-84.70359533,4.673e-05,2]
[394889986,1764078354976,-257.23820463,4.673e-05,2]
[394889987,1764078357568,-158.05820004,4.673e-05,2]
[394889988,1764078357590,-84.70359533,4.673e-05,2]
[394889989,1764078360469,-291.64286549,4.673e-05,2]
[394889990,1764078363537,-166.62506029,4.672e-05,2]
[394889991,1764078366549,-133.37493971,4.672e-05,2]
[394889992,1764078366577,-114.79515464,4.673e-05,2]
[394889993,1764078368109,-8.85838454,4.673e-05,2]
[394889994,1764078368133,-291.14161546,4.673e-05,2]
[394889995,1764078370051,-208.85838454,4.673e-05,2]
[394889996,1764078370072,-67.79435646,4.673e-05,2]
[394889997,1764078372058,-192.60588511,4.673e-05,2]
[394889998,1764078375156,-203.89487823,4.673e-05,2]
[394889999,1764078378137,-35.7048802,4.673e-05,2]
[394890000,1764078378160,-140.76900454,4.673e-05,2]
[394890001,1764078379596,-332.91110399,4.673e-05,2]
[394890002,1764078381728,-26.31989147,4.673e-05,2]
[394890003,1764078381750,-134.7523086,4.673e-05,2]
[394890004,1764078384807,-357.53575833,4.673e-05,2]
[394890005,1764078386305,-7.71193307,4.673e-05,2]
[394890006,1764078386329,-198.97046827,4.673e-05,2]
[394890007,1764078387722,-264.7672137,4.673e-05,2]
[394890008,1764078389783,-36.26231803,4.673e-05,2]
[394890009,1764078389806,-142.01802089,4.673e-05,2]
[394890010,1764078392870,-357.98197911,4.673e-05,2]
[394890011,1764078392893,-75.49043845,4.673e-05,2]
[394890012,1764078395001,-167.07545631,4.673e-05,2]
[394890013,1764078396345,-257.43410524,4.673e-05,2]
[394890014,1764078396366,-386.60464096,4.673e-05,2]
[394890015,1764078397739,-113.39535904,4.673e-05,2]
[394890016,1764078397761,-84.83095849,4.673e-05,2]
[394890017,1764078399856,-220.54876471,4.673e-05,2]
[394890018,1764078401360,-189.57158706,4.673e-05,2]
[394890019,1764078403304,-5.04868974,4.673e-05,2]
[394890020,1764078403325,-153.90257288,4.673e-05,2]
[394890022,1764078512589,-304.99988771,4.626e-05,2]
[394890023,1764078525656,-41.09753941,4.626e-05,2]
[394890024,1764078526336,-253.94127918,4.672e-05,2]
[394890025,1764078527837,-163.77616724,4.672e-05,2]
[394890026,1764078529416,-174.04848096,4.672e-05,2]
[394890027,1764078531292,-245.2777063,4.672e-05,2]
[394890028,1764078533936,-201.08534706,4.672e-05,2]
[394890029,1764078535881,-161.87101926,4.672e-05,2]
[394890030,1764078535908,-14.49465962,4.672e-05,2]
[394890031,1764078537467,-285.50534038,4.672e-05,2]
[394890032,1764078537488,-145.31640795,4.673e-05,2]
[394890033,1764078539078,-164.97177277,4.673e-05,2]
[394890034,1764078541214,-35.8092464,4.673e-05,2]
[394890035,1764078541235,-203.87446412,4.673e-05,2]
[394890036,1764078546693,222.97418727,4.626e-05,2]
[394890037,1764078569133,-296.12553588,4.673e-05,2]
[394890038,1764078569153,-500.0,4.673e-05,2]
[394890039,1764078569174,-500.0,4.673e-05,2]
[394890040,1764078569195,-500.0,4.673e-05,2]
[394890041,1764078569217,-284.73570426,4.686e-05,2]
[394890042,1764078569238,-300.0,4.698e-05,2]
[394890043,1764078569258,-300.0,4.699e-05,2]
[394890044,1764078569277,-300.0,4.699e-05,2]
[394890045,1764078569298,-328.0,4.699e-05,2]
[394890046,1764078569323,-43.20475755,4.7e-05,2]
[394890047,1764078573048,-9777.03581273,4.7e-05,2]
[394890048,1764078573174,-10000.01,4.7e-05,2]
[394890049,1764078573344,-10000.01,4.7e-05,2]
[394890050,1764078573483,-10000.01,4.7e-05,2]
[394890051,1764078573824,-10000.01,4.7e-05,2]
[394890052,1764078573925,-10000.01,4.7e-05,2]
[394890053,1764078574031,-10000.01,4.7e-05,2]
[394890054,1764078574201,-10000.01,4.7e-05,2]
[394890055,1764078574314,-10000.01,4.7e-05,2]
[394890056,1764078574462,-10000.01,4.7e-05,2]
[394890057,1764078575570,-333.27002933,4.7e-05,2]
[394890058,1764078577012,-310.71215322,4.7e-05,2]
[394890059,1764078580075,-192.81257279,4.7e-05,2]
[394890060,1764078582643,-307.18742721,4.7e-05,2]
[394890061,1764078590205,9898.37606008,4.653e-05,2]
[394890062,1764078607223,-300.0,4.699e-05,2]
[394890063,1764078607251,-300.0,4.699e-05,2]
[394890064,1764078607279,-452.0,4.699e-05,2]
[394890065,1764078618948,219.95325124,4.526e-05,2]
[394890066,1764078623171,-9881.69068868,4.7e-05,2]
[394890067,1764078623194,-10000.01,4.7e-05,2]
[394890068,1764078623258,-10000.01,4.7e-05,2]
[394890069,1764078623273,-10000.01,4.7e-05,2]
[394890070,1764078623378,-10000.01,4.7e-05,2]
[394890071,1764078623514,-10000.01,4.7e-05,2]
[394890072,1764078623630,-10000.01,4.7e-05,2]
[394890073,1764078623750,-10000.01,4.7e-05,2]
[394890074,1764078623888,-10000.01,4.7e-05,2]
[394890091,1764078631969,-10000.01,4.7e-05,2]
[394890094,1764078632003,-609.89,4.7e-05,2]
[394890095,1764078632015,-434.38627721,4.7e-05,2]
[394890096,1764078632026,-2396.8897785,4.7e-05,2]
[394890097,1764078632062,-10101.97428307,4.7e-05,2]
[394890098,1764078632074,-643.77140468,4.7e-05,2]
[394890104,1764078632114,-10000.01,4.7e-05,2]
[394890108,1764078632207,-10000.01,4.7e-05,2]
[394890109,1764078632336,-10000.01,4.7e-05,2]
[394890110,1764078632489,-10000.01,4.7e-05,2]
[394890111,1764078632895,-10000.01,4.7e-05,2]
[394890112,1764078632961,-10000.01,4.7e-05,2]
[394890113,1764078632975,-10000.01,4.7e-05,2]
[394890114,1764078633625,-10000.01,4.7e-05,2]
[394890118,1764078638044,-43203.31739076,4.7e-05,2]
[394890126,1764078640258,-263.37198423,4.7e-05,2]
[394890127,1764078640318,-272.71,4.7e-05,2]
[394890128,1764078640328,-3182.9385977,4.7e-05,2]
[394890129,1764078640339,-499.99509108,4.7e-05,2]
[394890130,1764078640350,-8682.18683737,4.7e-05,2]
[394890131,1764078641297,-36.05096235,4.7e-05,2]
[394890154,1764078646360,-13331.54751307,4.7e-05,2]
[394890155,1764078646474,-2265.9225486,4.7e-05,2]
[394890156,1764078646486,-23266.79437908,4.7e-05,2]
[394890157,1764078646533,-17459.16382567,4.7e-05,2]
[394890158,1764078646544,-841.34412303,4.7e-05,2]
[394890159,1764078646555,-2736.26456,4.7e-05,2]
[394890160,1764078691490,-155.73526175,4.653e-05,2]
[394890161,1764078737092,-289.95694602,4.653e-05,2]
[394890162,1764078738567,-424.57307729,4.653e-05,2]
[394890163,1764078741560,-183.34281655,4.653e-05,2]
[394890164,1764078743125,-247.11891598,4.653e-05,2]
[394890165,1764078744497,-347.89351051,4.653e-05,2]
[394890166,1764078747099,-151.3794719,4.653e-05,2]
[394890167,1764078747122,-77.20586048,4.663e-05,2]
[394890168,1764078750203,-208.11420655,4.663e-05,2]
[394890169,1764078750226,-31.16721232,4.672e-05,2]
[394890170,1764078754543,-268.83278768,4.672e-05,2]
[394890171,1764078754564,-178.84153852,4.673e-05,2]
[394890172,1764078757505,-216.95369689,4.625e-05,2]
[394890173,1764078757527,-83.04630311,4.673e-05,2]
[394890174,1764078760050,-238.11215837,4.673e-05,2]
[394890175,1764078760073,-46.89486508,4.673e-05,2]
[394890176,1764078761998,-210.04305395,4.673e-05,2]
[394890177,1764078763451,-243.06208097,4.673e-05,2]
[394890178,1764078763474,-44.67805971,4.673e-05,2]
[394890179,1764078766276,-166.93320611,4.626e-05,2]
[394890180,1764078766299,-172.22553698,4.673e-05,2]
[394890181,1764078767861,-188.92525109,4.673e-05,2]
[394890182,1764078770412,-94.17115222,4.673e-05,2]
[394890183,1764078770434,-194.15626316,4.673e-05,2]
[394890184,1764078771938,-272.22970046,4.672e-05,2]
[394890185,1764078774559,-300.0,4.672e-05,2]
[394890186,1764078776767,-220.49547666,4.672e-05,2]
[394890187,1764078778840,-210.88892161,4.672e-05,2]
[394890188,1764078780827,-196.38590127,4.672e-05,2]
[394890189,1764078780849,-103.61409873,4.673e-05,2]
[394890190,1764078784382,-258.95475805,4.672e-05,2]
[394890191,1764078788361,-249.26092958,4.625e-05,2]
[394890192,1764078789878,-50.73907042,4.625e-05,2]
[394890193,1764078789900,-41.04524195,4.672e-05,2]
[394890194,1764078789921,-125.23792526,4.673e-05,2]
[394890195,1764078792452,-76.99171285,4.673e-05,2]
[394890196,1764078792476,-76.01730235,4.673e-05,2]
[394890197,1764078794463,-281.85002194,4.673e-05,2]
[394890198,1764078797141,-142.13267571,4.673e-05,2]
[394890199,1764078797163,-46.79257538,4.673e-05,2]
[394890200,1764078798667,-308.22991976,4.673e-05,2]
[394890201,1764078801207,-144.97750486,4.673e-05,2]
[394890202,1764078801233,-15.91033408,4.673e-05,2]
[394890203,1764078803189,-246.21203509,4.626e-05,2]
[394890205,1764078804709,-227.84698348,4.626e-05,2]
[394890206,1764078806375,-14.86623252,4.626e-05,2]
[394890207,1764078806398,-262.60806453,4.673e-05,2]
[394890208,1764078808913,-157.78862659,4.673e-05,2]
[394890209,1764078810444,-217.43113029,4.626e-05,2]
[394890210,1764078813587,-209.04826266,4.626e-05,2]
[394890211,1764078817062,-138.00456264,4.626e-05,2]
[394890212,1764078817083,-63.6929748,4.673e-05,2]
[394890213,1764078817104,-84.89320568,4.673e-05,2]
[394890214,1764078820168,-218.49211706,4.673e-05,2]
[394890215,1764078822233,-196.61467726,4.673e-05,2]
[394890216,1764078822256,-105.93385877,4.673e-05,2]
[394890217,1764078823697,-222.35879455,4.673e-05,2]
[394890218,1764078827792,-171.70734668,4.673e-05,2]
[394890219,1764078827816,-4.51891719,4.673e-05,2]
[394890220,1764078829953,-376.85087449,4.673e-05,2]
[394890221,1764078831308,-118.63020832,4.673e-05,2]
[394890222,1764078831330,-159.01099713,4.673e-05,2]
[394890223,1764078834922,-303.75263424,4.626e-05,2]
[394890224,1764078837251,-320.89045173,4.626e-05,2]
[394890276,1764078930832,180.66,0.0002,30]
[394890277,1764078936366,247.75231269,7.552e-05,3]
[394890278,1764078936982,1253.4481588,3.761e-05,2]
[394890279,1764078941672,991.00925075,7.683e-05,3]
[394890280,1764078946649,2229.77081419,7.813e-05,3]
[394890281,1764078951910,3964.037003,7.943e-05,3]
[394890282,1764078955770,6193.80781719,8.073e-05,3]
[394890283,1764078960709,8919.08325675,8.204e-05,3]
[394890284,1764078962594,12127.72345837,8.334e-05,3]
[394890303,1764079009575,169.683033,1.851e-05,2]
[394890304,1764079009788,169.683033,2.777e-05,2]
[394890305,1764079010058,169.683033,3.703e-05,2]
[394890306,1764079023258,544.0,0.000225,120]
[394890307,1764079034844,266.99556521,7.558e-05,3]
[394890308,1764079037059,-206.68240134,4.507e-05,2]
[394890309,1764079037084,-107.23867557,4.53e-05,2]
[394890310,1764079039661,1067.98226086,7.754e-05,3]
[394890311,1764079040163,-164.87319919,4.53e-05,2]
[394890312,1764079040198,194.22959661,4.485e-05,2]
[394890313,1764079042510,-29.35639742,4.53e-05,2]
[394890314,1764079042533,-138.62595685,4.553e-05,2]
[394890315,1764079044946,-68.05644449,4.553e-05,2]
[394890316,1764079044970,-83.59806456,4.661e-05,2]
[394890317,1764079045686,2402.96008692,7.951e-05,3]
[394890318,1764079046358,-178.29297191,4.661e-05,2]
[394890319,1764079048371,-175.26723728,4.614e-05,2]
[394890320,1764079051729,4271.92904342,8.147e-05,3]
[394890321,1764079054967,6668.21424121,8.344e-05,3]
[394890322,1764079142582,-70.94739276,4.614e-05,2]
[394890323,1764079142604,-176.39025782,4.624e-05,2]
[394890324,1764079142629,-29.53700295,4.661e-05,2]
[394890326,1764079186525,-38.38465518,4.661e-05,2]
[394890327,1764079186546,-259.95331682,4.672e-05,2]
[394890328,1764079207027,1311.933302,3.919e-05,2]
[394890329,1764079246536,-320.68667031,4.533e-05,2]
[394890330,1764079249556,-127.71448204,4.533e-05,2]
[394890331,1764079249579,-255.71073684,4.579e-05,2]
[394890332,1764079254288,-223.84180775,4.579e-05,2]
[394890333,1764079254316,-34.32771844,4.6e-05,2]
[394890334,1764079256314,-385.77876107,4.6e-05,2]
[394890336,1764079259220,-311.80979212,4.6e-05,2]
[394890337,1764079261284,-214.58753373,4.6e-05,2]
[394890338,1764079307157,-161.60347885,4.599e-05,2]
[394890339,1764079308691,-138.39652115,4.599e-05,2]
[394890340,1764079308720,-46.11358305,4.6e-05,2]
[394890341,1764079311180,-270.45423746,4.6e-05,2]
[394890342,1764079312652,-185.9360197,4.6e-05,2]
[394890344,1764079396506,-301.89485399,4.553e-05,2]
[394890345,1764079426620,-232.12145844,4.553e-05,2]
[394890346,1764079428585,-481.83144987,4.553e-05,2]
[394890350,1764079531508,-297.09402483,4.553e-05,2]
[394890441,1764079768142,-300.0,4.526e-05,2]
[394890442,1764079768165,-301.35678339,4.549e-05,2]
[394890443,1764079768185,-1200.0,4.572e-05,2]
[394890444,1764079768206,-300.0,4.572e-05,2]
[394890445,1764079768231,-496.35169671,4.573e-05,2]
[394890446,1764079768251,-157.31479718,4.573e-05,2]
[394890447,1764079768270,-500.0,4.573e-05,2]
[394890448,1764079768290,-500.0,4.573e-05,2]
[394890449,1764079768311,-373.09006265,4.573e-05,2]
[394890615,1764079838241,-752.73625706,4.527e-05,2]
[394890648,1764079840499,-439.31,4.527e-05,2]
[394890650,1764079840510,-1544.42321796,4.527e-05,2]
[394890652,1764079840518,-300.0,4.572e-05,2]
[394890654,1764079840527,-300.0,4.572e-05,2]
[394890656,1764079840536,-300.0,4.572e-05,2]
[394890658,1764079840545,-126.90993735,4.573e-05,2]
[394890660,1764079840553,-500.0,4.573e-05,2]
[394890662,1764079840562,-500.0,4.573e-05,2]
[394890664,1764079840571,-503.40348565,4.573e-05,2]
[394890665,1764079840579,-500.0,4.573e-05,2]
[394890667,1764079840588,-500.0,4.573e-05,2]
[394890669,1764079840597,-500.0,4.573e-05,2]
[394890670,1764079840606,-500.0,4.573e-05,2]
[394890672,1764079840615,-500.0,4.573e-05,2]
[394890674,1764079840624,-500.0,4.573e-05,2]
[394890676,1764079840633,-500.0,4.573e-05,2]
[394890677,1764079840642,-16242.32476134,4.6e-05,2]
[394890783,1764079841646,-3e-08,4.6e-05,2]
[394890785,1764079841659,-552.89980945,4.6e-05,2]
[394890787,1764079841670,-3079.28350416,4.6e-05,2]
[394891278,1764079846446,-14638.21697011,4.6e-05,2]
[394891438,1764079871533,-161.96892812,4.554e-05,2]
[394891439,1764079891523,-261.54002788,4.554e-05,2]
[394891450,1764079996643,-277.34400081,4.508e-05,2]
[394891451,1764079999608,-172.34012344,4.508e-05,2]
[394891452,1764080052906,606.44234103,4.463e-05,2]
[394891453,1764080075313,606.44234103,4.463e-05,2]
[394891454,1764080091729,295.32964773,4.486e-05,2]
[394891455,1764080100416,295.32964773,4.486e-05,2]
[394891456,1764080115642,295.32964773,4.486e-05,2]
[394891457,1764080123404,295.32964773,4.486e-05,2]
[394891458,1764080146725,295.32964773,4.486e-05,2]
[394891459,1764080169507,295.32964773,4.486e-05,2]
[394891460,1764080192284,295.32964773,4.486e-05,2]
[394891461,1764080214603,295.32964773,4.486e-05,2]
[394891462,1764080264229,424070.07085691,4.5e-05,2]
[394891463,1764080266498,-295.32964773,4.531e-05,2]
[394891464,1764080266521,-177.90242636,4.573e-05,2]
[394891465,1764080282031,-232.76820118,4.573e-05,2]
[394891466,1764080284104,-179.66923726,4.572e-05,2]
[394891467,1764080285949,-120.33076274,4.572e-05,2]
[394891468,1764080285971,-89.50954312,4.573e-05,2]
[394891469,1764080285991,-70.92762005,4.573e-05,2]
[394891470,1764080287967,-233.58531602,4.573e-05,2]
[394891471,1764080290032,-166.93079355,4.573e-05,2]
[394891472,1764080294211,-28.55627038,4.573e-05,2]
[394891473,1764080294235,-215.10674136,4.573e-05,2]
[394891474,1764080297869,203.7821716,3.942e-05,2]
[394891475,1764080341530,-284.89325864,4.573e-05,2]
[394891476,1764080341552,-48.17596296,4.573e-05,2]
[394891477,1764080343618,-300.0,4.572e-05,2]
[394891478,1764080343640,-50.14704495,4.573e-05,2]
[394891479,1764080345690,-401.67699209,4.573e-05,2]
[394891480,1764080345711,-76.67969978,4.573e-05,2]
[394891481,1764080349365,-295.85710167,4.573e-05,2]
[394891482,1764080352786,-127.46319855,4.573e-05,2]
[394891483,1764080352809,-281.1712487,4.573e-05,2]
[394891484,1764080355078,-164.45472772,4.573e-05,2]
[394891485,1764080358321,-54.37402358,4.573e-05,2]
[394891486,1764080358344,-172.37600708,4.573e-05,2]
[394891487,1764080359904,-295.23376019,4.573e-05,2]
[394891488,1764080361869,-32.39023273,4.573e-05,2]
[394891489,1764080361891,-211.80691718,4.573e-05,2]
[394891490,1764080364579,-288.19308282,4.573e-05,2]
[394891491,1764080364601,-7.04067737,4.573e-05,2]
[394891492,1764080367165,-365.34739187,4.573e-05,2]
[394891494,1764080369738,-127.61193076,4.573e-05,2]
[394891495,1764080369761,-337.64444272,4.573e-05,2]
[394891496,1764080371336,-162.35555728,4.573e-05,2]
[394891497,1764080371359,-89.65094383,4.573e-05,2]
[394891498,1764080402691,-265.32804676,4.572e-05,2]
[394891499,1764080406396,-34.67195324,4.572e-05,2]
[394891500,1764080406426,-139.57234231,4.572e-05,2]
[394891501,1764080407913,-160.42765769,4.572e-05,2]
[394891502,1764080407942,-31.91678319,4.572e-05,2]
[394891503,1764080411094,-380.88272688,4.572e-05,2]
[394891504,1764080413206,-347.57362615,4.572e-05,2]
[394891505,1764080415676,-320.19035369,4.572e-05,2]
[394891506,1764080418081,-119.43651009,4.572e-05,2]
[394891507,1764080418104,-296.67235938,4.572e-05,2]
[394891508,1764080423263,-3.32764062,4.572e-05,2]
[394891509,1764080423285,-242.06636562,4.573e-05,2]
[394891510,1764080425757,-168.28269055,4.573e-05,2]
[394891511,1764080425777,-33.63714533,4.573e-05,2]
[394891512,1764080427770,-241.20937038,4.573e-05,2]
[394891513,1764080429813,-225.15348429,4.573e-05,2]
[394891514,1764080429836,-133.61653056,4.573e-05,2]
[394891515,1764080431967,-238.77603222,4.573e-05,2]
[394891516,1764080433505,-127.60743722,4.573e-05,2]
[394891517,1764080433529,-51.55706314,4.586e-05,2]
[394891519,1764080446521,-216.74451271,4.586e-05,2]
[394891521,1764080503620,27636.1510778,3.981e-05,2]
[394891534,1764080776326,-165.15686988,4.6e-05,2]
[394891535,1764080776950,-190.34295528,4.725e-05,2]
[394891536,1764080870656,-99.57072494,4.725e-05,2]
[394891537,1764080870689,-754.0,4.872e-05,2]
[394891538,1764080870718,-300.0,4.872e-05,2]
[394891539,1764080870746,-512.13460884,4.873e-05,2]
[394891540,1764080870774,-500.0,4.873e-05,2]
[394891541,1764080870804,-500.0,4.873e-05,2]
[394891542,1764080870833,-500.0,4.873e-05,2]
[394891543,1764080870861,-500.0,4.873e-05,2]
[394891544,1764080870890,-500.0,4.873e-05,2]
[394891545,1764080870917,-500.0,4.873e-05,2]
[394891546,1764080870944,-168.59933244,4.873e-05,2]
[394891547,1764080871107,-331.40066756,4.873e-05,2]
[394891548,1764080871134,-500.0,4.873e-05,2]
[394891549,1764080871163,-500.0,4.873e-05,2]
[394891550,1764080871189,-500.0,4.873e-05,2]
[394891551,1764080871217,-500.0,4.873e-05,2]
[394891552,1764080871244,-500.0,4.873e-05,2]
[394891553,1764080871270,-500.0,4.873e-05,2]
[394891554,1764080871483,-331.40066756,4.9e-05,2]
[394891555,1764080871497,-3337.20866488,4.9e-05,2]
[394891556,1764080871511,-10000.01,4.9e-05,2]
[394891557,1764080871629,-10000.01,4.9e-05,2]
[394891558,1764080871694,-10000.01,4.9e-05,2]
[394891559,1764080871878,-10000.01,4.9e-05,2]
[394891560,1764080871989,-10000.01,4.9e-05,2]
[394891561,1764080872120,-10000.01,4.9e-05,2]
[394891562,1764080872242,-10000.01,4.9e-05,2]
[394891563,1764080876561,-10000.01,4.9e-05,2]
[394891587,1764081032537,-352.65655969,4.897e-05,2]
[394891634,1764081038747,-147.34344031,4.897e-05,2]
[394891636,1764081038758,-250.0,4.897e-05,2]
[394891638,1764081038767,-500.0,4.897e-05,2]
[394891640,1764081038777,-250.0,4.897e-05,2]
[394891642,1764081038787,-500.0,4.897e-05,2]
[394891644,1764081038799,-250.0,4.897e-05,2]
[394891646,1764081038808,-500.0,4.897e-05,2]
[394891648,1764081038818,-250.0,4.897e-05,2]
[394891650,1764081038827,-500.0,4.897e-05,2]
[394891652,1764081038836,-250.0,4.897e-05,2]
[394891654,1764081038846,-500.0,4.897e-05,2]
[394891656,1764081038856,-250.0,4.897e-05,2]
[394891657,1764081038865,-250.0,4.897e-05,2]
[394891660,1764081038875,-209.96509319,4.897e-05,2]
[394891662,1764081038884,-570.14621069,4.897e-05,2]
[394891664,1764081038894,-300.0,4.899e-05,2]
[394891666,1764081038904,-60944.84837681,4.9e-05,2]
[394891702,1764081040938,-375.9,4.9e-05,2]
[394891703,1764081041441,-3e-08,4.9e-05,2]
[394891710,1764081046835,-16909.4604226,4.9e-05,2]
[394891712,1764081046960,-106792.09605419,4.9e-05,2]
[394891713,1764081047217,-152.65672118,4.9e-05,2]
[394891714,1764081058216,624.48510674,4.851e-05,2]
[394891715,1764081066781,274.78954935,4.85e-05,2]
[394891721,1764081431097,1056.83925255,4.8e-05,2]
[394891722,1764081600382,8043.89609136,4.8e-05,2]
[394891723,1764081600412,10000.01,4.8e-05,2]
[394891724,1764081605959,-300.0,4.799e-05,2]
[394891725,1764081606211,-9400.01,4.8e-05,2]
[394891726,1764081612212,-1531.2594976,4.752e-05,2]
[394891727,1764081617283,-531.81125195,4.8e-05,2]
[394891728,1764081619318,-226.99311996,4.8e-05,2]
[394891729,1764081621219,-195.54614795,4.8e-05,2]
[394891730,1764081622679,-248.15210994,4.8e-05,2]
[394891731,1764081626799,-173.26302056,4.8e-05,2]
[394891732,1764081629384,-332.65921408,4.8e-05,2]
[394891733,1764081631665,-171.90376807,4.8e-05,2]
[394891734,1764081633803,-246.25225795,4.8e-05,2]
[394891735,1764081637554,-300.0,4.8e-05,2]
[394891736,1764081640675,-217.13285445,4.8e-05,2]
[394891737,1764081642976,-272.73682858,4.8e-05,2]
[394891738,1764081644987,-202.54324198,4.8e-05,2]
[394891739,1764081649712,-162.09581647,4.8e-05,2]
[394891740,1764081651953,-248.97491769,4.8e-05,2]
[394891741,1764081654010,-324.82548915,4.8e-05,2]
[394891742,1764081656665,-223.04978818,4.8e-05,2]
[394891743,1764081658618,-194.9805786,4.8e-05,2]
[394891744,1764081661286,-298.01450429,4.8e-05,2]
[394891745,1764081662716,-330.83222459,4.8e-05,2]
[394891746,1764081665236,-300.0,4.799e-05,2]
[394891747,1764081665263,-226.29439252,4.8e-05,2]
[394891748,1764081667315,-252.33543127,4.8e-05,2]
[394891749,1764081669452,-401.26906231,4.8e-05,2]
[394891750,1764081673069,-241.84443051,4.8e-05,2]
[394891751,1764081674516,-196.39386214,4.8e-05,2]
[394891752,1764081676192,-300.0,4.8e-05,2]
[394891753,1764081852547,250.38864687,4.749e-05,2]